bitfinex/quotes_SOLUSD_20260228
["timestamp","ask_amount","ask_price","bid_price","bid_amount"]
[1772259551646,1.26341055,80.237,80.15,14.84331889]
[1772259551846,1.26341055,80.237,80.16,14.84331889]
[1772259552051,1.26341055,80.237,80.13,5.36086188]
[1772259552253,1.26341055,80.237,80.121,5.64518502]
[1772259552434,1.26341055,80.237,80.115,39.4]
[1772259552740,9.0546959,80.248,80.14,14.84331889]
[1772259552741,1.26341055,80.235,80.14,14.84331889]
[1772259552954,1.26341055,80.235,80.121,5.36086188]
[1772259553126,1.26341055,80.232,80.141,0.28432314]
[1772259553323,3.69383402,80.233,80.161,5.64518502]
[1772259553546,3.69383402,80.233,80.123,3.69383402]
[1772259553547,1.26341055,80.232,80.131,5.64518502]
[1772259553846,1.26341055,80.232,80.131,5.36086188]
[1772259554025,1.26341055,80.232,80.115,51.88203281]
[1772259554026,1.26341055,80.232,80.14,14.84331889]
[1772259554227,1.26341055,80.232,80.121,5.64518502]
[1772259554644,3.69383402,80.234,80.121,17.98414575]
[1772259554645,143.33611695,80.231,80.121,17.98414575]
[1772259554846,1.26341055,80.227,80.115,39.4]
[1772259555036,1.26341055,80.227,80.13,14.84331889]
[1772259555226,1.26341055,80.227,80.121,0.28432314]
[1772259555541,1.26341055,80.23,80.13,15.99856791]
[1772259555723,1.26341055,80.23,80.124,5.36086188]
[1772259555929,1.26341055,80.227,80.131,5.64518502]
[1772259556334,62.95672703,80.264,80.131,5.64518502]
[1772259556335,1.26341055,80.267,80.161,5.64518502]
[1772259556551,1.26341055,80.263,80.15,15.99856791]
[1772259556843,1.26341055,80.26,80.162,0.28432314]
[1772259557054,1.26341055,80.26,80.171,5.50302345]
[1772259557238,1.26341055,80.26,80.149,49.90668553]
[1772259557239,1.26341055,80.258,80.116,5.64518502]
[1772259557426,1.26341055,80.248,80.09,15.99856791]
[1772259557633,1.26341055,80.246,80.13,15.99856791]
[1772259557839,1.26341055,80.239,80.11,15.99856791]
[1772259558224,1.26341055,80.226,80.09,15.99856791]
[1772259558649,1.26341055,80.226,80.12,15.99856791]
[1772259558856,1.26341055,80.221,80.131,5.64518502]
[1772259559029,1.26341055,80.221,80.101,5.50302345]
[1772259559230,1.26341055,80.221,80.08,15.99856791]
[1772259559451,1.26341055,80.221,80.09,15.99856791]
[1772259559642,1.26341055,80.221,80.08,15.99856791]
[1772259559832,1.26341055,80.221,80.091,5.50302345]
[1772259560039,1.26341055,80.221,80.121,5.50302345]
[1772259560243,1.26341055,80.221,80.131,5.64518502]
[1772259560654,1.26341055,80.221,80.122,0.28432314]
[1772259560947,1.26341055,80.221,80.061,62.39985756]
[1772259560948,1.26341055,80.219,80.1,15.99856791]
[1772259561248,1.26341055,80.216,80.081,5.36086188]
[1772259561545,1.26341055,80.207,80.08,15.99856791]
[1772259561757,1.26341055,80.207,80.07,15.99856791]
[1772259561930,1.26341055,80.199,80.06,15.99856791]
[1772259562130,1.26341055,80.199,80.08,15.99856791]
[1772259562330,43.50177508,80.603,80.061,93.67857008]
[1772259562331,1.26341055,80.196,80.09,15.99856791]
[1772259562556,1.26341055,80.196,80.061,243.5642822]
[1772259562855,1.26341055,80.196,80.111,12.48268028]
[1772259563232,1.26341055,80.196,80.07,15.99856791]
[1772259563539,1.26341055,80.196,80.053,12.49172423]
[1772259563739,1.26341055,80.196,80.06,15.99856791]
[1772259563958,1.26341055,80.187,80.053,12.49172423]
[1772259564265,1.26341055,80.187,80.08,15.99856791]
[1772259564552,1.26341055,80.187,80.11,15.99856791]
[1772259564738,1.26341055,80.187,80.112,12.48252446]
[1772259565152,1.26341055,80.187,80.113,5.64518502]
[1772259565369,1.26341055,80.187,80.093,3.69383402]
[1772259565370,1.26341055,80.187,80.09,15.99856791]
[1772259565538,1.26341055,80.187,80.091,5.64518502]
[1772259565737,1.26341055,80.187,80.092,0.14216157]
[1772259565937,1.26341055,80.187,80.101,5.64518502]
[1772259566343,1.26341055,80.187,80.083,3.69383402]
[1772259566344,1.26341055,80.233,80.111,5.64518502]
[1772259566646,1.26341055,80.233,80.122,0.28432314]
[1772259566953,1.26341055,80.233,80.131,5.64518502]
[1772259567139,1.26341055,80.233,80.131,0.28432314]
[1772259567536,1.26341055,80.233,80.141,5.64518502]
[1772259567734,1.26341055,80.233,80.116,12.4818096]
[1772259567961,1.26341055,80.233,80.11,15.99856791]
[1772259568143,1.26341055,80.233,80.12,15.99856791]
[1772259568339,1.26341055,80.233,80.121,5.50302345]
[1772259568535,1.26341055,80.233,80.082,31.21800154]
[1772259568536,1.26341055,80.255,80.16,15.99856791]
[1772259568963,1.26341055,80.277,80.162,0.28432314]
[1772259569257,1.26341055,80.277,80.181,0.28432314]
[1772259569456,1.26341055,80.294,80.201,0.28432314]
[1772259569659,1.39137445,80.278,80.202,0.28432314]
[1772259569843,1.39137445,80.278,80.161,12.47489427]
[1772259570036,1.39137445,80.278,80.19,15.99856791]
[1772259570238,1.39137445,80.278,80.191,0.28432314]
[1772259570447,1.39137445,80.278,80.151,17.83731257]
[1772259570653,1.39137445,80.278,80.14,15.99856791]
[1772259570834,1.39137445,80.278,80.087,49.945515]
[1772259570835,1.39137445,80.278,80.161,5.50302345]
[1772259571039,1.39137445,80.278,80.181,5.50302345]
[1772259571251,1.39137445,80.278,80.191,5.64518502]
[1772259571450,0.1279639,80.278,80.231,5.64518502]
[1772259571737,0.1279639,80.278,80.24,15.99856791]
[1772259571942,0.1279639,80.278,80.241,5.64518502]
[1772259572267,6.49597527,80.387,80.241,5.64518502]
[1772259572268,3.69383402,80.313,80.241,0.28432314]
[1772259572437,1.26341055,80.316,80.24,15.99856791]
[1772259572636,1.26341055,80.334,80.25,15.99856791]
[1772259572841,6.49597527,80.387,80.231,12.46390021]
[1772259572842,1.26341055,80.304,80.231,12.46390021]
[1772259573354,1.26341055,80.304,80.222,0.28432314]
[1772259573554,1.26341055,80.304,80.187,12.47084938]
[1772259573862,1.26341055,80.301,80.2,15.99856791]
[1772259574042,1.26341055,80.301,80.19,15.99856791]
[1772259574243,1.26341055,80.301,80.187,12.47084938]
[1772259574244,1.26341055,80.301,80.21,15.99856791]
[1772259574557,1.26341055,80.335,80.251,0.14216157]
[1772259574760,61.53321144,80.504,80.271,5.36086188]
[1772259574761,1.26341055,80.354,80.271,5.36086188]
[1772259575056,37.33,80.458,80.252,44.96]
[1772259575057,1.26341055,80.328,80.253,12.46059337]
[1772259575362,1.26341055,80.328,80.252,44.96]
[1772259576858,6.49474264,80.387,80.157,44.94]
[1772259576859,1.26341055,80.326,80.157,44.94]
[1772259577062,1.26341055,80.321,80.18,15.99856791]
[1772259577255,1.26341055,80.311,80.173,3.69383402]
[1772259577446,1.26341055,80.311,80.19,15.99856791]
[1772259577647,1.26341055,80.308,80.19,15.99856791]
[1772259578160,1.26341055,80.308,80.201,0.28432314]
[1772259578339,3.69383402,80.327,80.183,3.69383402]
[1772259578340,1.26341055,80.306,80.183,3.69383402]
[1772259578540,1.26341055,80.302,80.184,8.85542314]
[1772259578758,3.69383402,80.327,80.157,88.60423769]
[1772259578759,1.26341055,80.292,80.17,15.99856791]
[1772259579063,1.26341055,80.292,80.171,21.32870271]
[1772259579262,1.26341055,80.292,80.172,8.85540769]
[1772259579459,1.26341055,80.292,80.19,15.99856791]
[1772259579659,1.26341055,80.292,80.171,43.65664061]
[1772259579859,1.26341055,80.292,80.18,15.99856791]
[1772259580066,1.26341055,80.292,80.161,5.36086188]
[1772259580067,1.26341055,80.283,80.15,15.99856791]
[1772259580247,1.26341055,80.272,80.15,15.99856791]
[1772259580448,1.26341055,80.272,80.158,12.47536116]
[1772259580769,1.26341055,80.272,80.17,15.99856791]
[1772259580962,1.26341055,80.272,80.157,57.41550645]
[1772259580963,1.26341055,80.272,80.18,15.99856791]
[1772259581769,1.26341055,80.272,80.171,43.65668382]
[1772259581953,1.26341055,80.272,80.16,28.47361781]
[1772259582269,1.26341055,80.268,80.16,15.99856791]
[1772259582462,1.26341055,80.268,80.158,12.47536116]
[1772259582463,1.26341055,80.265,80.158,12.47536116]
[1772259582777,1.26341055,80.265,80.171,0.14216157]
[1772259582947,1.26341055,80.265,80.19,15.99856791]
[1772259583153,1.26341055,80.265,80.2,15.99856791]
[1772259583467,1.26341055,80.265,80.141,12.47792622]
[1772259583674,1.26341055,80.251,80.111,3.69383402]
[1772259583851,1.26341055,80.243,80.13,15.99856791]
[1772259584045,1.26341055,80.243,80.14,15.99856791]
[1772259584252,1.26341055,80.243,80.14,12.47814259]
[1772259584461,1.26341055,80.243,80.146,12.4771637]
[1772259584661,1.26341055,80.243,80.13,15.99856791]
[1772259584861,1.26341055,80.243,80.14,15.99856791]
[1772259585190,1.26341055,80.243,80.146,12.47716365]
[1772259585356,1.26341055,80.243,80.114,49.92866594]
[1772259585357,1.26341055,80.243,80.132,12.47936545]
[1772259585668,1.26341055,80.243,80.131,12.47948156]
[1772259586061,1.26341055,80.243,80.13,15.99856791]
[1772259586264,1.26341055,80.243,80.16,15.99856791]
[1772259586449,1.26341055,80.243,80.158,12.47536116]
[1772259586646,1.26341055,80.243,80.16,15.99856791]
[1772259586869,1.26341055,80.243,80.158,43.66376406]
[1772259587049,123.63082984,80.386,80.2,15.99856791]
[1772259587050,1.26341055,80.346,80.2,15.99856791]
[1772259587246,1.26341055,80.346,80.21,15.99856791]
[1772259587450,1.26341055,80.346,80.2,15.99856791]
[1772259587647,1.26341055,80.346,80.181,0.28432314]
[1772259587872,43.50177508,80.338,80.19,15.99856791]
[1772259588060,9.0546959,80.31,80.19,15.99856791]
[1772259588450,5.36086188,80.309,80.19,15.99856791]
[1772259588651,3.69383402,80.306,80.19,15.99856791]
[1772259588852,3.69383402,80.306,80.161,3.69383402]
[1772259588853,43.50177508,80.332,80.211,43.63491291]
[1772259589053,43.50177508,80.35,80.211,12.46711797]
[1772259589265,3.69383402,80.306,80.211,12.46711797]
[1772259589451,5.36086188,80.327,80.211,12.46711797]
[1772259589452,100.03527788,80.355,80.22,15.99856791]
[1772259589651,62.92876798,80.356,80.23,15.99856791]
[1772259589866,62.76474313,80.413,80.24,15.99856791]
[1772259589867,1.26341055,80.369,80.24,15.99856791]
[1772259590087,1.26341055,80.369,80.26,15.99856791]
[1772259590253,1.26341055,80.369,80.231,3.69383402]
[1772259590453,15.99856791,80.382,80.231,3.69383402]
[1772259590454,1.26341055,80.367,80.26,15.99856791]
[1772259590867,1.26341055,80.367,80.232,0.28432314]
[1772259591068,1.26341055,80.367,80.26,15.99856791]
[1772259591249,1.26341055,80.36,80.26,15.99856791]
[1772259591873,1.26341055,80.36,80.252,0.28432314]
[1772259591874,1.26341055,80.36,80.28,15.99856791]
[1772259592081,1.26341055,80.36,80.25,49.84412128]
[1772259592082,1.26341055,80.36,80.255,44.92]
[1772259592273,1.26341055,80.358,80.255,44.92]
[1772259592590,1.26341055,80.331,80.255,44.92]
[1772259592870,3.69383402,80.334,80.255,44.92]
[1772259592871,1.26341055,80.325,80.255,44.92]
[1772259593071,1.26341055,80.308,80.255,44.92]
[1772259593466,1.26341055,80.308,80.2,15.99856791]
[1772259593668,1.26341055,80.308,80.171,94.81294773]
[1772259593669,1.26341055,80.308,80.21,15.99856791]
[1772259594171,1.26341055,80.308,80.22,15.99856791]
[1772259594371,1.26341055,80.308,80.201,43.64035361]
[1772259594372,1.26341055,80.308,80.23,15.99856791]
[1772259594571,1.26341055,80.308,80.24,15.99856791]
[1772259594775,1.26341055,80.308,80.202,5.36086188]
[1772259594776,1.26341055,80.308,80.25,15.99856791]
[1772259594976,1.26341055,80.306,80.241,12.46245684]
[1772259595181,1.26341055,80.306,80.212,49.86727133]
[1772259595182,1.26341055,80.306,80.22,15.99856791]
[1772259595385,1.26341055,80.306,80.21,15.99856791]
[1772259595598,3.69383402,80.305,80.21,15.99856791]
[1772259595758,1.26341055,80.304,80.21,15.99856791]
[1772259596154,1.26341055,80.304,80.203,12.46836153]
[1772259596389,1.26341055,80.304,80.203,43.63926536]
[1772259596592,1.26341055,80.304,80.21,15.99856791]
[1772259596794,1.26341055,80.304,80.22,15.99856791]
[1772259596998,1.26341055,80.302,80.221,12.46556387]
[1772259597202,1.26341055,80.302,80.23,15.99856791]
[1772259597401,1.26341055,80.302,80.221,12.46556387]
[1772259597575,1.26341055,80.302,80.221,43.62947356]
[1772259597783,1.26341055,80.302,80.23,15.99856791]
[1772259598798,1.26341055,80.302,80.21,15.99856791]
[1772259599098,1.26341055,80.3,80.221,12.46556387]
[1772259599274,1.26341055,80.3,80.22,15.99856791]
[1772259599880,1.26341055,80.3,80.221,12.46556387]
[1772259600278,1.26341055,80.3,80.23,15.99856791]
[1772259600422,12.45097428,80.315,80.25,15.99856791]
[1772259600590,13.71438483,80.315,80.25,15.99856791]
[1772259600798,1.26341055,80.314,80.25,15.99856791]
[1772259600991,1.26341055,80.363,80.26,15.99856791]
[1772259601309,1.26341055,80.362,80.27,15.99856791]
[1772259601521,1.26341055,80.357,80.166,62.59200328]
[1772259601698,1.26341055,80.357,80.164,49.89713296]
[1772259601699,1.26341055,80.352,80.18,21.35942979]
[1772259602011,38.59341055,80.323,80.171,44.92]
[1772259602186,3.69383402,80.297,80.171,44.92]
[1772259602387,1.26341055,80.282,80.172,12.47318265]
[1772259602688,1.26341055,80.265,80.171,44.92]
[1772259603208,1.26341055,80.26,80.171,44.92]
[1772259603905,1.26341055,80.258,80.171,44.92]
[1772259604298,1.26341055,80.255,80.171,44.92]
[1772259604817,1.26341055,80.255,80.19,15.99856791]
[1772259605000,43.60609986,80.264,80.2,15.99856791]
[1772259605001,1.26341055,80.263,80.2,15.99856791]
[1772259605196,49.82017919,80.289,80.171,44.92]
[1772259605197,49.81076889,80.304,80.21,15.99856791]
[1772259605406,49.80249438,80.318,80.22,15.99856791]
[1772259605407,1.26341055,80.276,80.22,15.99856791]
[1772259605591,1.26341055,80.276,80.18,49.88737157]
[1772259605592,1.24638548,80.275,80.18,15.99856791]
[1772259605796,1.26341055,80.274,80.14,15.99856791]
[1772259605993,5.36086188,80.259,80.14,15.99856791]
[1772259606311,1.26341055,80.244,80.15,15.99856791]
[1772259606497,1.26341055,80.238,80.121,12.4811223]
[1772259607006,1.26341055,80.238,80.122,5.36086188]
[1772259607199,1.26341055,80.233,80.123,12.48081075]
[1772259607411,1.26341055,80.233,80.126,3.69383402]
[1772259607606,1.26341055,80.233,80.135,5.64518502]
[1772259607807,1.26341055,80.233,80.134,3.69383402]
[1772259607808,1.26341055,80.267,80.137,5.64518502]
[1772259608016,1.26341055,80.267,80.134,3.69383402]
[1772259608017,3.69383402,80.256,80.139,5.64518502]
[1772259608222,3.69383402,80.256,80.141,5.64518502]
[1772259608429,1.26341055,80.267,80.143,5.64518502]
[1772259608731,1.26341055,80.271,80.171,0.28432314]
[1772259608894,1.26341055,80.271,80.154,3.69383402]
[1772259608895,1.26341055,80.271,80.175,0.28432314]
[1772259609097,12.4579544,80.27,80.189,0.28432314]
[1772259609301,13.72136495,80.27,80.189,0.28432314]
[1772259609504,1.26341055,80.269,80.185,12.47116044]
[1772259609706,1.26341055,80.269,80.185,43.64906154]
[1772259610003,1.26341055,80.269,80.185,12.47116044]
[1772259610216,1.26341055,80.269,80.186,1.53142363]
[1772259610520,1.26341055,80.269,80.189,0.28432314]
[1772259611220,12.45713728,80.276,80.195,5.64518502]
[1772259611425,1.26341055,80.315,80.215,5.64518502]
[1772259611608,12.44833939,80.332,80.218,3.69383402]
[1772259611609,1.26341055,80.313,80.218,3.69383402]
[1772259611802,1.26341055,80.311,80.192,5.36086188]
[1772259612005,1.26341055,80.311,80.199,3.69383402]
[1772259612230,1.26341055,80.311,80.195,0.28432314]
[1772259612907,1.26341055,80.311,80.19,255.64284822]
[1772259612908,1.26341055,80.311,80.216,5.36086188]
[1772259613111,12.45174947,80.31,80.23,0.28432314]
[1772259613617,13.71516002,80.31,80.233,0.28432314]
[1772259613829,12.45174947,80.31,80.233,0.28432314]
[1772259614003,1.26341055,80.309,80.233,0.28432314]
[1772259614205,1.26341055,80.309,80.234,1.24635441]
[1772259614512,12.45167436,80.311,80.234,1.24635441]
[1772259614513,12.45167436,80.311,80.235,0.28432314]
[1772259614715,12.45167436,80.311,80.237,0.28432314]
[1772259615011,12.45167436,80.311,80.239,0.28432314]
[1772259615243,1.26341055,80.321,80.244,9.33901904]
[1772259615431,12.44260846,80.369,80.25,5.64518502]
[1772259615717,12.44260846,80.369,80.249,3.69383402]
[1772259615718,3.69383402,80.376,80.252,5.64518502]
[1772259615924,7.64501862,80.369,80.271,3.69383402]
[1772259616099,7.64501862,80.369,80.264,5.50302345]
[1772259616100,1.26341055,80.367,80.267,62.74108424]
[1772259616296,1.26341055,80.367,80.24,330.2592223]
[1772259616297,1.26341055,80.365,80.279,0.28432314]
[1772259616504,1.26341055,80.365,80.24,43.61914256]
[1772259616819,1.26341055,80.365,80.241,5.36086188]
[1772259617120,0.2,80.37,80.24,305.33399797]
[1772259617121,12.64250921,80.37,80.255,193.13438413]
[1772259617325,1.26341055,80.369,80.257,5.64518502]
[1772259617502,1.26341055,80.369,80.264,3.69383402]
[1772259617705,1.26341055,80.368,80.287,0.28432314]
[1772259618205,1.26341055,80.368,80.282,50.52]
[1772259618206,1.26341055,80.368,80.283,0.28432314]
[1772259618622,0.2,80.37,80.283,0.28432314]
[1772259618623,0.2,80.37,80.286,9.33901904]
[1772259619121,12.44260846,80.369,80.287,43.59360792]
[1772259619325,0.2,80.37,80.307,0.28432314]
[1772259619635,1.26341055,80.368,80.291,0.28432314]
[1772259619924,1.26341055,80.368,80.29,5.64518502]
[1772259620098,1.26341055,80.368,80.293,9.33901904]
[1772259620302,1.26341055,80.368,80.299,0.28432314]
[1772259620601,1.26341055,80.368,80.29,3.69383402]
[1772259620602,0.2,80.37,80.319,0.28432314]
[1772259620806,0.2,80.37,80.304,3.69383402]
[1772259621004,1.26341055,80.368,80.287,12.45531655]
[1772259621202,1.26341055,80.366,80.289,0.14216157]
[1772259621404,1.26341055,80.366,80.287,12.45531655]
[1772259621405,1.26341055,80.366,80.29,1.24548511]
[1772259621606,1.26341055,80.366,80.278,5.36086188]
[1772259621607,1.26341055,80.363,80.232,62.75333585]
[1772259621806,3.69383402,80.364,80.231,43.62403559]
[1772259621807,1.26341055,80.361,80.231,155.80012712]
[1772259622107,1.26341055,80.361,80.241,5.36086188]
[1772259622306,1.26341055,80.361,80.233,1.24636994]
[1772259622307,1.26341055,80.361,80.252,62.78472361]
[1772259622514,0.2,80.37,80.272,3.69383402]
[1772259622705,0.2,80.37,80.266,0.28432314]
[1772259622706,0.2,80.37,80.297,5.64518502]
[1772259622917,0.2,80.37,80.307,0.28432314]
[1772259623121,0.2,80.37,80.309,0.28432314]
[1772259623321,0.2,80.37,80.311,0.28432314]
[1772259623523,0.2,80.37,80.314,9.33901904]
[1772259623720,0.2,80.37,80.319,9.33901904]
[1772259624021,0.2,80.37,80.31,143.1951189]
[1772259624022,1.26341055,80.408,80.324,3.97815716]
[1772259624224,1.26341055,80.408,80.329,9.33901904]
[1772259624426,0.2,80.42,80.339,0.28432314]
[1772259624427,12.4356603,80.414,80.339,0.28432314]
[1772259624605,12.4356603,80.414,80.328,5.36086188]
[1772259624606,0.2,80.42,80.341,5.64518502]
[1772259624813,0.2,80.42,80.343,5.64518502]
[1772259625011,0.2,80.42,80.347,5.64518502]
[1772259625239,0.2,80.42,80.352,52.89736231]
[1772259625722,0.2,80.42,80.354,0.28432314]
[1772259625922,0.2,80.42,80.355,68.06872835]
[1772259626108,0.2,80.42,80.379,0.28432314]
[1772259626308,0.2,80.42,80.379,5.64518502]
[1772259626522,0.2,80.42,80.379,0.28432314]
[1772259626908,0.2,80.42,80.376,0.28432314]
[1772259627310,0.2,80.42,80.368,0.28432314]
[1772259627517,0.2,80.42,80.355,3.69383402]
[1772259627518,1.26341055,80.418,80.361,0.28432314]
[1772259627727,1.26341055,80.418,80.361,12.5860087]
[1772259627925,1.26341055,80.418,80.339,1.24472547]
[1772259628133,1.26341055,80.418,80.344,3.69383402]
[1772259628625,12.63477486,80.42,80.357,0.28432314]
[1772259628626,0.2,80.42,80.357,0.28432314]
[1772259628839,0.2,80.42,80.357,1.52876979]
[1772259629020,0.2,80.42,80.351,62.38205058]
[1772259629021,1.26341055,80.419,80.322,31.12436761]
[1772259629348,1.26341055,80.417,80.315,12.45097428]
[1772259629634,1.26341055,80.414,80.312,12.45143938]
[1772259629810,1.26341055,80.414,80.307,43.58275118]
[1772259630263,1.26341055,80.414,80.308,5.36086188]
[1772259630730,1.26341055,80.414,80.31,3.69383402]
[1772259630922,1.26341055,80.414,80.307,43.58275118]
[1772259631230,1.26341055,80.409,80.307,43.58275118]
[1772259632030,1.26341055,80.409,80.316,5.36086188]
[1772259632216,1.26341055,80.409,80.318,0.28432314]
[1772259632612,1.26341055,80.409,80.318,0.14216157]
[1772259633019,1.26341055,80.409,80.309,0.14216157]
[1772259633319,1.26341055,80.404,80.308,0.14216157]
[1772259633633,1.26341055,80.404,80.308,0.28432314]
[1772259634317,1.26341055,80.404,80.307,12.45221462]
[1772259634716,1.26341055,80.404,80.308,0.28432314]
[1772259635422,62.56189941,80.435,80.295,31.13482888]
[1772259635423,1.26341055,80.399,80.295,12.45393011]
[1772259635913,1.26341055,80.399,80.278,7.88086188]
[1772259635914,1.26341055,80.399,80.294,31.13528348]
[1772259636116,1.26341055,80.399,80.308,0.28432314]
[1772259636316,1.26341055,80.399,80.31,0.28432314]
[1772259636527,1.26341055,80.399,80.312,0.28432314]
[1772259636813,1.26341055,80.399,80.324,5.64518502]
[1772259637448,1.26341055,80.413,80.334,5.64518502]
[1772259637776,1.26341055,80.413,80.334,6.88998796]
[1772259638516,1.26341055,80.413,80.336,68.50376525]
[1772259638734,12.43564553,80.414,80.344,5.64518502]
[1772259638922,1.26341055,80.419,80.344,69.51728757]
[1772259639133,1.26341055,80.418,80.344,6.88983303]
[1772259639323,1.26341055,80.416,80.346,5.64518502]
[1772259640130,1.26341055,80.416,80.354,5.64518502]
[1772259640522,0.2,80.42,80.356,5.64518502]
[1772259640727,0.2,80.42,80.358,0.28432314]
[1772259640916,0.2,80.42,80.36,0.28432314]
[1772259641117,1.26341055,80.418,80.36,0.28432314]
[1772259641443,1.26341055,80.418,80.353,3.69383402]
[1772259641444,1.26341055,80.416,80.344,5.64518502]
[1772259641734,1.26341055,80.416,80.353,3.69383402]
[1772259641939,1.26341055,80.416,80.354,5.64518502]
[1772259642143,1.26341055,80.416,80.356,0.28432314]
[1772259642516,1.26341055,80.416,80.329,12.44880429]
[1772259642722,1.26341055,80.416,80.282,49.82411511]
[1772259642723,1.26341055,80.416,80.312,5.36086188]
[1772259642921,1.26341055,80.416,80.316,5.36086188]
[1772259643435,1.26341055,80.414,80.318,12.45050922]
[1772259643616,1.26341055,80.414,80.319,0.28432314]
[1772259643821,1.26341055,80.414,80.318,12.45050922]
[1772259644429,1.26341055,80.414,80.318,43.57678228]
[1772259644636,1.26341055,80.414,80.319,0.14216157]
[1772259645044,1.26341055,80.411,80.307,12.45210966]
[1772259645349,1.26341055,80.411,80.317,0.14216157]
[1772259645638,0.2,80.42,80.318,0.14216157]
[1772259645639,1.26341055,80.409,80.318,0.14216157]
[1772259645842,1.26341055,80.409,80.321,9.33901904]
[1772259646142,1.26341055,80.409,80.323,5.64518502]
[1772259646349,1.26341055,80.409,80.331,5.64518502]
[1772259647741,1.26341055,80.407,80.333,0.28432314]
[1772259648140,1.26341055,80.407,80.335,5.64518502]
[1772259648440,1.26341055,80.407,80.337,5.64518502]
[1772259648628,1.26341055,80.407,80.332,43.56918786]
[1772259648629,1.26341055,80.407,80.339,0.28432314]
[1772259648830,1.26341055,80.407,80.341,0.28432314]
[1772259649024,1.26341055,80.407,80.343,0.28432314]
[1772259649227,1.26341055,80.407,80.345,5.64518502]
[1772259649447,1.26341055,80.407,80.345,0.28432314]
[1772259649742,0.2,80.42,80.347,0.28432314]
[1772259649743,1.26341055,80.405,80.347,0.28432314]
[1772259650248,1.26341055,80.405,80.349,0.28432314]
[1772259650435,1.26341055,80.405,80.351,0.28432314]
[1772259651146,1.26341055,80.405,80.347,0.28432314]
[1772259651746,1.26341055,80.403,80.349,0.28432314]
[1772259653726,1.26341055,80.401,80.346,0.28432314]
[1772259654143,1.26341055,80.401,80.348,0.28432314]
[1772259654649,1.26341055,80.401,80.35,0.28432314]
[1772259654837,1.26341055,80.401,80.352,0.28432314]
[1772259655645,1.26341055,80.401,80.353,1.2445086]
[1772259656252,1.26341055,80.401,80.354,12.44493117]
[1772259656431,12.43741357,80.403,80.352,0.28432314]
[1772259656432,1.26341055,80.399,80.355,1.24447763]
[1772259656631,1.26341055,80.399,80.349,0.28432314]
[1772259656949,1.26341055,80.399,80.329,12.44872844]
[1772259657139,1.26341055,80.399,80.331,0.28432314]
[1772259657337,1.26341055,80.399,80.33,1.24486493]
[1772259657535,1.26341055,80.399,80.332,0.14216157]
[1772259657735,1.26341055,80.399,80.335,0.14216157]
[1772259657933,1.26341055,80.399,80.334,5.50302345]
[1772259657934,1.26341055,80.399,80.337,3.97815716]
[1772259658145,1.26341055,80.399,80.337,0.28432314]
[1772259658345,12.43766452,80.401,80.341,0.28432314]
[1772259658346,1.26341055,80.397,80.341,0.28432314]
[1772259658646,1.26341055,80.397,80.34,43.56484938]
[1772259658647,1.26341055,80.397,80.343,5.64518502]
[1772259658851,1.26341055,80.397,80.345,5.64518502]
[1772259659051,1.26341055,80.397,80.347,0.28432314]
[1772259659351,1.26341055,80.419,80.353,5.64518502]
[1772259659551,1.26341055,80.419,80.344,3.69383402]
[1772259659552,0.2,80.42,80.363,5.64518502]
[1772259659847,1.46341055,80.42,80.363,5.64518502]
[1772259660030,1.46341055,80.42,80.365,5.64518502]
[1772259660227,0.2,80.42,80.371,5.64518502]
[1772259660431,1.26341055,80.419,80.375,5.64518502]
[1772259660649,1.26341055,80.419,80.374,43.54642048]
[1772259660650,1.26341055,80.418,80.377,0.28432314]
[1772259660849,0.2,80.42,80.379,0.28432314]
[1772259661051,1.26341055,80.433,80.382,0.28432314]
[1772259661259,1.26341055,80.433,80.384,5.64518502]
[1772259661454,0.2,80.5,80.385,1.24401318]
[1772259661455,1.26341055,80.431,80.385,1.24401318]
[1772259661635,1.26341055,80.431,80.336,62.85858023]
[1772259661636,1.26341055,80.431,80.333,3.69383402]
[1772259661950,1.26341055,80.431,80.309,12.45190451]
[1772259661951,1.26341055,80.428,80.31,5.64518502]
[1772259662155,1.26341055,80.428,80.312,5.36086188]
[1772259662339,49.72637638,80.441,80.312,5.36086188]
[1772259662340,1.26341055,80.423,80.312,5.36086188]
[1772259662765,1.26341055,80.423,80.314,5.36086188]
[1772259662951,1.26341055,80.423,80.311,242.80609128]
[1772259662952,1.26341055,80.423,80.33,42.83302345]
[1772259663155,1.26341055,80.423,80.311,317.51565783]
[1772259663156,1.26341055,80.423,80.339,5.64518502]
[1772259663352,1.26341055,80.423,80.341,5.64518502]
[1772259663536,1.26341055,80.423,80.343,5.64518502]
[1772259663740,1.26341055,80.423,80.357,5.64518502]
[1772259663938,1.26341055,80.441,80.38,3.69383402]
[1772259664157,1.26341055,80.44,80.381,0.90319822]
[1772259664458,49.69229501,80.496,80.385,5.64518502]
[1772259664459,1.26341055,80.438,80.385,5.64518502]
[1772259664654,1.26341055,80.438,80.368,0.61880561]
[1772259664853,1.26341055,80.438,80.366,12.44307294]
[1772259665558,1.26341055,80.438,80.368,0.28432314]
[1772259665856,1.26341055,80.438,80.37,5.64518502]
[1772259666067,1.26341055,80.438,80.372,5.64518502]